bitfinex-derivatives/quotes_SOLF0:USTF0_20260315
["timestamp","ask_amount","ask_price","bid_price","bid_amount"]
[1773604657510,1.48141151,88.209,88.172,3.85729623]
[1773604658608,10.201,88.208,88.172,3.85729623]
[1773604659511,10.201,88.208,88.141,35.72]
[1773604659512,1.33816155,88.199,88.158,3.85729623]
[1773604662311,10.202,88.202,88.158,3.85729623]
[1773604662508,10.202,88.202,88.16,3.85729623]
[1773604665012,1.30484187,88.224,88.171,3.85729623]
[1773604666512,10.2,88.219,88.173,10.205]
[1773604666715,10.2,88.219,88.174,3.85729623]
[1773604667914,1.28687259,88.218,88.174,3.85729623]
[1773604668112,1.28687259,88.218,88.177,3.85729623]
[1773604669914,1.28722732,88.209,88.164,3.85729623]
[1773604671619,11.48822732,88.209,88.164,3.85729623]
[1773604671819,1.28796756,88.208,88.164,3.85729623]
[1773604673321,1.28796756,88.208,88.166,3.95430135]
[1773604675521,11.47981866,88.207,88.166,3.95430135]
[1773604675916,1.27881866,88.199,88.155,3.95430135]
[1773604677623,10.202,88.197,88.155,3.95430135]
[1773604678821,1.28285569,88.196,88.155,3.95430135]
[1773604679128,1.28285569,88.195,88.155,3.95430135]
[1773604680628,10.203,88.189,88.155,3.95430135]
[1773604681527,1.28285569,88.195,88.155,3.95430135]
[1773604681830,3.0851997,88.22,88.171,3.95430135]
[1773604682230,4.36726789,88.22,88.171,3.95430135]
[1773604682430,10.2,88.215,88.172,3.95430135]
[1773604687235,1.26286866,88.212,88.172,3.95430135]
[1773604687432,1.26286866,88.209,88.164,10.206]
[1773604687845,1.26286866,88.209,88.164,14.16030135]
[1773604688032,1.26286866,88.209,88.165,3.95430135]
[1773604688735,11.46355707,88.206,88.165,3.95430135]
[1773604690744,10.2,88.214,88.168,3.95430135]
[1773604691742,10.2,88.214,88.173,3.95430135]
[1773604693042,11.45814947,88.214,88.173,3.95430135]
[1773604699237,11.45814947,88.214,88.176,3.95430135]
[1773604699639,1.24549994,88.228,88.181,3.95430135]
[1773604700547,1.24549994,88.228,88.191,3.95430135]
[1773604702444,1.24549994,88.228,88.193,10.203]
[1773604703454,1.24549994,88.228,88.191,3.95430135]
[1773604707050,1.24217747,88.219,88.18,4.00509442]
[1773604707456,1.24209864,88.209,88.163,4.00509442]
[1773604708156,1.24209864,88.209,88.171,10.205]
[1773604708557,1.24209864,88.209,88.171,14.21009442]
[1773604709055,1.24209864,88.209,88.172,4.00509442]
[1773604719963,1.24209864,88.209,88.175,4.00509442]
[1773604721565,10.201,88.208,88.175,4.00509442]
[1773604726869,11.42106797,88.208,88.175,4.00509442]
[1773604727066,1.22006797,88.207,88.175,4.00509442]
[1773604727268,1.22006797,88.203,88.158,10.207]
[1773604727464,1.22004549,88.199,88.158,10.207]
[1773604727661,1.22004549,88.191,88.154,4.00509442]
[1773604738081,1.28519073,88.189,88.154,4.00509442]
[1773604740373,1.28858975,88.179,88.123,3.96797636]
[1773604741570,10.206,88.168,88.125,3.96797636]
[1773604742684,10.206,88.168,88.129,3.96797636]
[1773604744184,1.29849726,88.167,88.129,3.96797636]
[1773604751187,8.39119183,88.202,88.104,21.23895883]
[1773604751188,3.08279037,88.19,88.141,3.96797636]
[1773604751491,4.38503804,88.19,88.141,3.96797636]
[1773604751880,1.30224767,88.189,88.141,3.96797636]
[1773604752292,1.29396339,88.2,88.151,3.96797636]
[1773604752789,1.29396339,88.198,88.152,3.96797636]
[1773604753689,10.203,88.196,88.152,3.96797636]
[1773604754089,1.42273476,88.195,88.152,3.96797636]
[1773604763800,10.204,88.187,88.152,3.96797636]
[1773604764000,1.42273476,88.195,88.152,3.96797636]
[1773604765597,11.62573476,88.195,88.152,3.96797636]
[1773604769999,1.43187026,88.194,88.152,3.96797636]
[1773604780905,10.203,88.193,88.152,3.96797636]
[1773604783904,11.63541518,88.193,88.152,3.96797636]
[1773604786207,1.42369652,88.19,88.152,3.96797636]
[1773604786411,1.42369652,88.179,88.143,4.00786476]
[1773604787513,1.48375301,88.178,88.143,4.00786476]
[1773604789612,11.68658858,88.186,88.146,4.00786476]
[1773604789811,1.48258858,88.185,88.146,4.00786476]
[1773604791317,10.204,88.181,88.146,4.00786476]
[1773604791917,11.69223993,88.181,88.146,4.00786476]
[1773604794914,1.49076296,88.18,88.146,4.00786476]
[1773604800428,10.205,88.178,88.146,4.00786476]
[1773604800628,1.61232885,88.177,88.135,35.72]
[1773604800926,1.61232885,88.177,88.135,39.61713095]
[1773604801506,1.61232885,88.177,88.135,3.89713095]
[1773604801630,1.61422891,88.175,88.135,3.89713095]
[1773604802630,10.205,88.173,88.135,3.89713095]
[1773604802829,1.62167476,88.172,88.135,3.89713095]
[1773604803124,1.62167476,88.157,88.114,3.89713095]
[1773604803626,1.62133679,88.147,88.101,3.89713095]
[1773604803927,1.62133679,88.185,88.133,3.89713095]
[1773604804124,1.62133679,88.183,88.141,3.89713095]
[1773604804329,1.65741129,88.193,88.151,3.89713095]
[1773604804525,8.64318664,88.192,88.151,3.89713095]
[1773604804726,8.64318664,88.191,88.151,3.89713095]
[1773604804926,8.64318664,88.19,88.151,3.89713095]
[1773604805128,8.64318664,88.189,88.151,3.89713095]
[1773604805326,1.65741129,88.193,88.151,3.89713095]
[1773604805526,1.74511246,88.191,88.151,3.89713095]
[1773604805727,1.74511246,88.189,88.151,3.89713095]
[1773604806030,1.74511246,88.187,88.151,3.89713095]
[1773604806529,1.75118436,88.178,88.14,3.89713095]
[1773604807230,1.75118436,88.199,88.151,3.89713095]
[1773604807426,17.07495553,88.198,88.151,3.89713095]
[1773604807627,17.07495553,88.197,88.151,3.89713095]
[1773604807825,8.63535123,88.196,88.151,3.89713095]
[1773604808020,8.63535123,88.195,88.151,3.89713095]
[1773604808226,8.63535123,88.194,88.151,3.89713095]
[1773604808426,8.63535123,88.193,88.151,3.89713095]
[1773604808630,8.63535123,88.192,88.151,3.89713095]
[1773604808829,8.63535123,88.191,88.151,3.89713095]
[1773604809030,8.63535123,88.19,88.151,3.89713095]
[1773604809230,8.63535123,88.189,88.151,3.89713095]
[1773604809425,10.202,88.198,88.151,3.89713095]
[1773604809728,8.63477009,88.197,88.151,3.89713095]
[1773604809930,8.63477009,88.196,88.151,3.89713095]
[1773604810230,8.63477009,88.195,88.151,3.89713095]
[1773604810432,1.82646441,88.189,88.141,3.89713095]
[1773604810630,1.82646441,88.187,88.141,3.89713095]
[1773604810933,1.82646441,88.185,88.141,3.89713095]
[1773604811126,8.63477009,88.184,88.141,3.89713095]
[1773604811428,1.82686498,88.181,88.141,3.89713095]
[1773604811733,1.82686498,88.179,88.141,3.89713095]
[1773604812531,1.73574601,88.178,88.141,3.89713095]
[1773604814434,10.204,88.187,88.141,3.89713095]
[1773604814631,8.6354068,88.186,88.141,3.89713095]
[1773604814829,8.6354068,88.185,88.141,3.89713095]
[1773604815031,10.204,88.187,88.141,3.89713095]
[1773604815032,8.6354068,88.184,88.141,3.89713095]
[1773604815230,8.6354068,88.183,88.141,3.89713095]
[1773604815430,8.6354068,88.182,88.141,3.89713095]
[1773604815730,8.6354068,88.181,88.141,3.89713095]
[1773604815934,8.6354068,88.18,88.141,3.89713095]
[1773604816124,8.6354068,88.179,88.141,3.89713095]
[1773604816330,10.204,88.187,88.141,3.89713095]
[1773604816531,8.660194,88.186,88.141,3.89713095]
[1773604816732,10.203,88.195,88.151,3.89713095]
[1773604817037,8.65961567,88.194,88.151,3.89713095]
[1773604817232,8.65961567,88.193,88.151,3.89713095]
[1773604817431,10.203,88.195,88.151,3.89713095]
[1773604817631,11.93607666,88.193,88.151,3.89713095]
[1773604817833,1.73307666,88.191,88.151,3.89713095]
[1773604818135,1.73307666,88.189,88.151,3.89713095]
[1773604818336,8.65823371,88.188,88.151,3.89713095]
[1773604818536,8.65823371,88.187,88.151,3.89713095]
[1773604818738,8.65823371,88.186,88.151,3.89713095]
[1773604818934,8.65823371,88.185,88.151,3.89713095]
[1773604819237,1.72171773,88.196,88.151,3.89713095]
[1773604819438,10.38856611,88.195,88.151,3.89713095]
[1773604819639,8.65823827,88.194,88.151,3.89713095]
[1773604819838,8.65823827,88.193,88.151,3.89713095]
[1773604820041,8.65823827,88.192,88.151,3.89713095]
[1773604820240,8.65823827,88.191,88.151,3.89713095]
[1773604820442,8.65823827,88.19,88.151,3.89713095]
[1773604820738,8.65823827,88.189,88.151,3.89713095]
[1773604820934,11.93332784,88.195,88.151,3.89713095]
[1773604821132,1.73131519,88.191,88.151,3.89713095]
[1773604821432,8.4396043,88.219,88.151,3.89713095]
[1773604821433,1.73124254,88.189,88.151,3.89713095]
[1773604821638,11.74365641,88.19,88.14,3.08560918]
[1773604821639,1.73124254,88.187,88.141,3.89713095]
[1773604821842,3.08560918,88.19,88.141,3.89713095]
[1773604821843,1.7254422,88.185,88.141,3.89713095]
[1773604822035,8.65804723,88.184,88.141,3.89713095]
[1773604822237,8.65804723,88.183,88.141,3.89713095]
[1773604822540,10.204,88.181,88.141,3.89713095]
[1773604823339,1.7254422,88.184,88.141,3.89713095]
[1773604823540,8.65839312,88.183,88.141,3.89713095]
[1773604823740,1.7254422,88.184,88.141,3.89713095]
[1773604823940,8.65839312,88.183,88.141,3.89713095]
[1773604824242,1.7254422,88.184,88.141,3.89713095]
[1773604824441,8.65842031,88.183,88.141,3.89713095]
[1773604824636,1.7254422,88.184,88.141,3.89713095]
[1773604824833,8.65842031,88.183,88.141,3.89713095]
[1773604825038,1.7254422,88.184,88.141,3.89713095]
[1773604825239,8.65917215,88.183,88.141,3.89713095]
[1773604825442,8.65917215,88.182,88.141,3.89713095]
[1773604825641,8.65917215,88.181,88.141,3.89713095]
[1773604825837,8.65917215,88.18,88.141,3.89713095]
[1773604826041,8.65917215,88.179,88.141,3.89713095]
[1773604826341,1.7254422,88.184,88.141,3.89713095]
[1773604826538,8.65903521,88.183,88.141,3.89713095]
[1773604826738,8.65903521,88.182,88.141,3.89713095]
[1773604826939,8.65903521,88.181,88.141,3.89713095]
[1773604827238,8.65903521,88.18,88.141,3.89713095]
[1773604827438,8.65903521,88.179,88.141,3.89713095]
[1773604827743,1.7254422,88.184,88.141,3.89713095]
[1773604828041,8.65898244,88.183,88.141,3.89713095]
[1773604828237,8.65898244,88.182,88.141,3.89713095]
[1773604828435,8.65898244,88.181,88.141,3.89713095]
[1773604828639,8.65898244,88.18,88.141,3.89713095]
[1773604828944,8.65898244,88.179,88.141,3.89713095]
[1773604829142,1.7254422,88.184,88.141,3.89713095]
[1773604829348,8.65894427,88.183,88.141,3.89713095]
[1773604829639,1.73560258,88.181,88.141,3.89713095]
[1773604829945,1.73560258,88.179,88.141,3.89713095]
[1773604831541,10.205,88.178,88.141,3.89713095]
[1773604832644,1.72467579,88.177,88.141,3.89713095]
[1773604833335,10.205,88.176,88.141,3.89713095]
[1773604833648,8.6597203,88.175,88.141,3.89713095]
[1773604833944,8.6597203,88.174,88.141,3.89713095]
[1773604834146,1.72490923,88.169,88.134,3.74858567]
[1773604834443,1.7249462,88.167,88.134,3.74858567]
[1773604834638,10.3846665,88.166,88.134,3.74858567]
[1773604834837,10.206,88.164,88.134,3.74858567]
[1773604836239,1.73018429,88.163,88.123,3.74858567]
[1773604841851,1.73018429,88.163,88.1,21.23895883]
[1773604841852,1.72860485,88.149,88.107,3.74858567]
[1773604842151,1.72860485,88.147,88.107,3.74858567]
[1773604843551,10.209,88.142,88.107,3.74858567]
[1773604844656,10.21,88.136,88.107,3.74858567]
[1773604844844,1.73128715,88.129,88.073,3.74858567]
[1773604845245,3.08613089,88.11,88.073,3.74858567]
[1773604845453,1.73401894,88.109,88.073,3.74858567]
[1773604845954,3.08613089,88.13,88.081,3.74858567]
[1773604846153,1.73401894,88.129,88.081,3.74858567]
[1773604846552,10.211,88.127,88.081,13.96458567]
[1773604846752,11.92983695,88.127,88.082,3.74858567]
[1773604847651,1.60776261,88.123,88.082,3.74858567]
[1773604848555,10.211,88.122,88.082,3.74858567]
[1773604852763,10.212,88.119,88.082,3.74858567]
[1773604852965,1.55278077,88.118,88.07,3.90955543]
[1773604854660,10.212,88.114,88.07,3.90955543]
[1773604856565,10.213,88.11,88.071,3.90955543]
[1773604856765,1.58349465,88.113,88.073,3.90955543]
[1773604858263,10.212,88.112,88.073,3.90955543]
[1773604859969,1.65941441,88.104,88.073,3.90955543]
[1773604861367,3.08613089,88.11,88.073,3.90955543]
[1773604861673,10.212,88.11,88.073,3.90955543]
[1773604862574,8.61096386,88.147,88.069,10.217]
[1773604862575,10.212,88.119,88.081,3.90955543]
[1773604864774,8.61096386,88.147,88.031,35.74]
[1773604864775,10.21,88.128,88.091,3.90955543]
[1773604865572,10.21,88.135,88.091,3.90955543]
[1773604866477,10.21,88.135,88.093,3.90955543]
[1773604866776,1.63969787,88.138,88.093,3.90955543]
[1773604866975,1.63969787,88.138,88.095,3.90955543]
[1773604868677,10.209,88.137,88.095,3.90955543]
[1773604869677,11.85184464,88.137,88.095,3.90955543]
[1773604871180,1.65006867,88.134,88.095,3.90955543]
[1773604871385,1.65636794,88.129,88.087,10.215]
[1773604871984,1.65636794,88.129,88.087,14.12455543]
[1773604872187,3.08613089,88.13,88.087,14.12455543]
[1773604872188,11.86736794,88.126,88.087,3.90955543]
[1773604872485,1.6573316,88.125,88.087,3.90955543]
[1773604874481,3.08613089,88.13,88.087,3.90955543]
[1773604874683,1.69685016,88.149,88.091,3.90955543]
[1773604875690,1.69538024,88.141,88.097,3.90955543]
[1773604876692,1.69538024,88.141,88.099,3.90955543]
[1773604882092,1.64672323,88.157,88.117,4.03526221]
[1773604882301,10.24418014,88.156,88.117,4.03526221]
[1773604882496,1.65585582,88.156,88.117,4.03526221]
[1773604882896,10.206,88.164,88.12,3.08764606]
[1773604883092,10.206,88.164,88.121,4.03526221]
[1773604883794,11.83749205,88.164,88.121,4.03526221]
[1773604883999,1.63149205,88.163,88.121,4.03526221]
[1773604886696,10.206,88.162,88.121,4.03526221]
[1773604890306,10.206,88.17,88.123,4.03526221]
[1773604891104,1.67296808,88.169,88.123,4.03526221]
[1773604892502,1.67382241,88.167,88.123,4.03526221]
[1773604892902,1.67382241,88.156,88.113,4.03526221]
[1773604894705,1.71444829,88.153,88.113,4.03526221]
[1773604906811,1.71444829,88.153,88.115,4.03526221]
[1773604907214,1.71436415,88.15,88.09,3.08764606]
[1773604907413,1.71436415,88.15,88.091,4.03526221]
[1773604907809,1.71436415,88.15,88.101,4.03526221]
[1773604908719,10.208,88.149,88.107,4.03526221]
[1773604909520,10.208,88.149,88.11,10.212]
[1773604909720,10.208,88.149,88.111,4.03526221]
[1773604915314,11.93385101,88.149,88.111,4.03526221]
[1773604918230,8.65396226,88.159,88.115,3.67775008]
[1773604918428,3.88222146,88.169,88.115,3.67775008]
[1773604919529,3.08764606,88.17,88.123,3.67775008]
[1773604919530,3.88222146,88.167,88.123,3.67775008]
[1773604920628,10.206,88.164,88.124,10.211]
[1773604920823,10.206,88.164,88.125,3.67775008]
[1773604921229,10.206,88.164,88.128,3.67775008]
[1773604923234,14.08822146,88.164,88.128,3.67775008]
[1773604923536,3.88222146,88.174,88.131,3.67775008]
[1773604924734,3.88222146,88.174,88.136,3.67775008]
[1773604926528,3.88222146,88.174,88.138,3.67775008]
[1773604940151,10.204,88.182,88.141,3.67775008]
[1773604940346,3.88222146,88.183,88.141,3.67775008]
[1773604941651,3.88222146,88.183,88.15,10.208]
[1773604950654,3.88222146,88.183,88.142,10.209]
[1773604950853,3.08593026,88.18,88.122,35.72]
[1773604951048,4.05072025,88.179,88.123,3.74883231]
[1773604951371,4.05072025,88.149,88.101,3.74883231]
[1773604952152,10.208,88.148,88.103,10.213]
[1773604952372,14.25872025,88.148,88.104,3.74883231]
[1773604953257,4.05072025,88.148,88.109,3.74883231]
[1773604954060,10.208,88.147,88.109,3.74883231]
[1773604954257,4.05072025,88.148,88.109,3.74883231]
[1773604957766,4.05072025,88.147,88.109,3.74883231]
[1773604961771,4.05072025,88.145,88.099,10.214]
[1773604961964,4.05072025,88.139,88.088,3.74883231]
[1773604962568,4.05072025,88.137,88.091,3.74883231]
[1773604963672,4.05072025,88.135,88.094,3.74883231]
[1773604968971,10.21,88.131,88.094,3.74883231]
[1773604969270,4.05072025,88.119,88.063,3.74883231]
[1773604969475,4.05072025,88.109,88.063,3.74883231]
[1773604970569,4.05072025,88.109,88.07,3.74883231]
[1773604971672,4.05072025,88.109,88.072,3.74883231]
[1773604983876,3.6587037,88.091,88.048,10.22]
[1773604984084,3.6587037,88.089,88.048,10.22]
[1773604985584,3.6587037,88.087,88.048,10.22]
[1773604987980,10.214,88.096,88.054,3.74245154]
[1773604988581,3.6587037,88.099,88.056,3.74245154]
[1773604989179,10.213,88.103,88.06,3.74245154]
[1773604989378,3.6587037,88.109,88.061,3.74245154]
[1773604990572,3.6587037,88.109,88.069,3.74245154]
[1773604992181,3.6587037,88.132,88.081,3.74245154]
[1773604992380,3.6587037,88.132,88.091,3.74245154]
[1773604992784,3.6587037,88.132,88.093,10.214]
[1773604992981,3.6587037,88.129,88.062,3.74245154]
[1773604993183,3.6587037,88.109,88.062,3.74245154]
[1773604994687,3.6587037,88.108,88.062,3.74245154]
[1773604994988,3.5987037,88.108,88.062,3.74245154]
[1773604999386,3.6587037,88.106,88.054,10.219]
[1773604999788,3.6587037,88.106,88.058,10.218]
[1773605000188,3.6587037,88.106,88.058,13.96045154]
[1773605000388,3.6587037,88.106,88.059,3.74245154]
[1773605001591,3.6587037,88.104,88.059,3.74245154]
[1773605002796,3.85990394,88.099,88.059,3.74245154]
[1773605004895,3.85990394,88.099,88.06,10.218]
[1773605005795,3.85990394,88.099,88.06,13.97796276]
[1773605006094,3.85990394,88.099,88.065,3.75996276]
[1773605006296,3.85990394,88.121,88.081,3.75996276]
[1773605006892,3.85990394,88.119,88.081,3.75996276]
[1773605007797,3.85990394,88.119,88.081,3.69996276]
[1773605008495,3.85990394,88.115,88.081,3.69996276]
[1773605009598,10.212,88.114,88.081,3.69996276]
[1773605009897,14.07190394,88.114,88.081,3.69996276]
[1773605013799,3.85990394,88.113,88.081,3.69996276]
[1773605021002,3.85990394,88.113,88.071,10.217]
[1773605021701,3.85990394,88.111,88.071,10.217]
[1773605021902,3.85990394,88.111,88.071,13.97696276]
[1773605022301,3.85990394,88.108,88.071,3.75996276]
[1773605023500,10.213,88.105,88.071,3.75996276]
[1773605023697,3.85990394,88.104,88.071,3.75996276]
[1773605025007,3.85990394,88.104,88.07,10.217]
[1773605025008,3.85990394,88.103,88.061,3.75996276]
[1773605026309,3.85990394,88.101,88.062,3.75996276]
[1773605026702,3.85990394,88.113,88.071,3.75996276]
[1773605027612,3.85990394,88.109,88.073,10.217]
[1773605031213,12.49505478,88.108,88.073,10.217]
[1773605031413,3.85990394,88.108,88.074,3.75996276]
[1773605033324,8.63847263,88.107,88.074,3.75996276]
[1773605033517,3.85990394,88.108,88.074,3.75996276]
[1773605033719,8.63847263,88.107,88.074,3.75996276]
[1773605033909,3.85990394,88.108,88.074,3.75996276]
[1773605034114,8.63847263,88.107,88.074,3.75996276]
[1773605034417,8.63847263,88.106,88.074,3.75996276]
[1773605034618,3.85990394,88.108,88.074,3.75996276]
[1773605034819,8.64011011,88.107,88.074,3.75996276]
[1773605035020,8.64011011,88.106,88.074,3.75996276]
[1773605035321,3.090274,88.12,88.05,35.74]
[1773605035322,3.93317983,88.139,88.09,3.090274]
[1773605035516,3.93317983,88.134,88.091,3.95918181]
[1773605035712,3.93317983,88.132,88.091,3.95918181]
[1773605035915,3.93317983,88.13,88.091,3.95918181]
[1773605036219,10.21,88.128,88.091,3.95918181]
[1773605036420,8.63932387,88.127,88.091,3.95918181]
[1773605036618,10.21,88.128,88.091,3.95918181]
[1773605036920,8.63541751,88.127,88.091,3.95918181]
[1773605037112,10.21,88.128,88.091,3.95918181]
[1773605037615,8.63337272,88.127,88.091,3.95918181]
[1773605037922,14.14317983,88.128,88.091,3.95918181]
[1773605042430,10.211,88.126,88.091,3.95918181]
[1773605044022,8.51700989,88.147,88.093,3.95918181]
[1773605044222,3.93317983,88.147,88.111,3.95918181]
[1773605053830,3.090274,88.14,88.08,3.090274]
[1773605054145,3.93317983,88.109,88.066,3.95918181]
[1773605055429,3.93317983,88.104,88.066,3.95918181]
[1773605059331,3.93317983,88.127,88.071,3.95918181]
[1773605060534,14.14417983,88.122,88.075,3.95918181]
[1773605061542,3.93317983,88.121,88.078,3.95918181]
[1773605061940,3.93317983,88.121,88.08,3.090274]
[1773605062240,14.07356714,88.131,88.086,3.78509219]
[1773605062456,3.86356714,88.13,88.086,3.78509219]
[1773605063643,14.07356714,88.129,88.088,3.78509219]
[1773605064938,3.86356714,88.128,88.088,3.78509219]
[1773605076854,3.86356714,88.128,88.092,3.78509219]
[1773605081257,3.86356714,88.128,88.094,3.78509219]
[1773605081559,3.86356714,88.138,88.101,3.78509219]
[1773605082759,3.86356714,88.138,88.103,3.78509219]
[1773605085953,14.07056714,88.154,88.11,3.09014934]
[1773605086156,14.07056714,88.154,88.111,3.78509219]
[1773605086362,3.86356714,88.153,88.111,3.78509219]
[1773605087661,3.86356714,88.153,88.113,3.78509219]
[1773605088659,10.206,88.163,88.12,3.09014934]
[1773605088863,10.206,88.163,88.121,3.78509219]
[1773605089256,10.206,88.163,88.081,35.74]
[1773605089257,10.205,88.172,88.131,3.78509219]
[1773605089459,14.06856714,88.172,88.131,3.78509219]
[1773605090564,14.06856714,88.172,88.132,3.78509219]
[1773605097571,14.06856714,88.172,88.14,3.09014934]
[1773605097572,3.86356714,88.172,88.14,3.09014934]
[1773605097775,3.86356714,88.172,88.141,3.97919917]
[1773605098272,10.204,88.181,88.141,3.97919917]
[1773605098474,3.73723832,88.18,88.143,3.97919917]
[1773605101878,3.73723832,88.178,88.143,3.97919917]
[1773605106278,3.73723832,88.202,88.161,3.97919917]
[1773605107393,3.73723832,88.2,88.161,3.97919917]
[1773605107882,35.72,88.226,88.125,35.72]
[1773605107883,3.73723832,88.189,88.131,3.97919917]
[1773605109681,3.73723832,88.178,88.134,3.97919917]
[1773605110590,3.73723832,88.178,88.136,10.209]
[1773605110778,3.73723832,88.178,88.136,14.18819917]
[1773605113588,3.73723832,88.176,88.136,14.18819917]
[1773605113787,3.73723832,88.176,88.137,3.97919917]
[1773605114378,3.73723832,88.176,88.112,35.72]
[1773605114379,3.73723832,88.159,88.114,3.97919917]
[1773605115686,3.73723832,88.158,88.116,3.97919917]
[1773605116485,3.73723832,88.156,88.116,3.97919917]
[1773605117692,3.73723832,88.169,88.126,3.97919917]
[1773605117894,3.73723832,88.179,88.13,3.09014934]
[1773605118087,3.73723832,88.179,88.131,3.97919917]
[1773605119587,3.73723832,88.177,88.136,10.209]
[1773605121292,3.73723832,88.177,88.131,3.97919917]
[1773605121293,3.73723832,88.172,88.131,3.97919917]
[1773605125196,4.04408203,88.17,88.131,3.97919917]
[1773605125387,4.04408203,88.17,88.127,10.21]
[1773605126595,4.04408203,88.163,88.121,3.72988425]
[1773605127492,10.206,88.162,88.121,3.72988425]
[1773605127688,14.25008203,88.162,88.121,3.72988425]
[1773605131688,14.25008203,88.162,88.123,3.72988425]
[1773605132691,4.04408203,88.161,88.123,3.72988425]
[1773605134100,4.04408203,88.161,88.125,3.72988425]
[1773605135600,4.04408203,88.161,88.127,13.93988425]
[1773605137794,4.04408203,88.172,88.131,3.72988425]
[1773605138405,4.04408203,88.172,88.141,3.72988425]
[1773605138605,8.4234922,88.189,88.141,3.72988425]
[1773605138606,4.04408203,88.184,88.141,3.72988425]
[1773605138806,4.04408203,88.182,88.141,3.72988425]
[1773605139000,4.04408203,88.18,88.141,3.72988425]
[1773605139598,4.04408203,88.18,88.144,3.72988425]
[1773605139803,4.04408203,88.18,88.15,6.81712841]
[1773605140106,4.04408203,88.19,88.151,3.72988425]
[1773605140303,8.66148908,88.189,88.151,3.72988425]
[1773605140502,8.66148908,88.188,88.151,3.72988425]
[1773605140712,8.66148908,88.187,88.151,3.72988425]
[1773605140907,4.04408203,88.19,88.151,3.72988425]
[1773605141107,4.04408203,88.188,88.151,3.72988425]
[1773605141407,12.70556367,88.187,88.151,3.72988425]
[1773605141606,8.66148164,88.186,88.151,3.72988425]
[1773605141807,4.04408203,88.187,88.151,3.72988425]
[1773605142007,8.66130877,88.186,88.151,3.72988425]
[1773605142203,4.04408203,88.187,88.151,3.72988425]
[1773605142410,8.66120545,88.186,88.151,3.72988425]
[1773605142604,4.04408203,88.187,88.151,3.72988425]
[1773605146107,4.04408203,88.187,88.154,10.207]
[1773605146706,4.04408203,88.187,88.151,3.72988425]
[1773605155114,4.04408203,88.187,88.153,3.84134719]
[1773605166029,4.04408203,88.187,88.152,10.208]
[1773605173326,10.203,88.193,88.153,3.84134719]
[1773605173534,3.77823514,88.199,88.156,3.84134719]
[1773605173736,3.77823514,88.197,88.156,3.84134719]
[1773605174730,3.77823514,88.195,88.156,3.84134719]
[1773605177136,3.77823514,88.193,88.156,3.84134719]
[1773605177738,3.77823514,88.188,88.156,3.84134719]
[1773605178333,3.77823514,88.183,88.145,3.84134719]
[1773605178540,3.77823514,88.183,88.135,3.84134719]
[1773605179641,3.77823514,88.181,88.135,3.84134719]
[1773605185144,4.03201551,88.179,88.137,3.88712906]
[1773605186745,4.03201551,88.177,88.137,3.88712906]
[1773605187042,4.03201551,88.177,88.131,35.72]
[1773605187841,4.03201551,88.177,88.132,3.88712906]
[1773605188646,10.206,88.17,88.132,3.88712906]
[1773605195246,14.23801551,88.17,88.132,3.88712906]
[1773605196949,4.03201551,88.169,88.132,3.88712906]
[1773605210068,4.03201551,88.164,88.127,10.21]
[1773605213061,4.03201551,88.164,88.122,3.88712906]
[1773605214865,4.03201551,88.164,88.124,3.81103759]
[1773605215570,4.03201551,88.164,88.131,3.81103759]
[1773605217868,10.205,88.173,88.131,3.81103759]
[1773605218474,10.204,88.18,88.151,3.81103759]
[1773605220874,4.01880405,88.176,88.14,6.89752525]
[1773605221077,4.01880405,88.176,88.141,3.81103759]
[1773605225580,4.01880405,88.176,88.142,3.81103759]
[1773605226079,8.54097254,88.185,88.151,3.81103759]
[1773605226279,10.204,88.186,88.151,3.81103759]
[1773605226580,4.01880405,88.185,88.151,3.81103759]
[1773605236692,10.203,88.193,88.151,3.81103759]
[1773605236992,10.203,88.193,88.129,21.02643733]
[1773605236993,4.01880405,88.208,88.161,3.81103759]
[1773605237189,4.01880405,88.206,88.161,3.81103759]
[1773605237388,4.01880405,88.204,88.161,3.81103759]
[1773605237591,4.01880405,88.202,88.161,3.81103759]
[1773605243192,3.91627939,88.198,88.161,3.81103759]
[1773605243495,3.91627939,88.198,88.152,10.208]
[1773605244098,3.91627939,88.198,88.152,14.26559805]
[1773605244497,10.203,88.194,88.152,14.26559805]
[1773605244695,3.91627939,88.193,88.152,14.26559805]
[1773605246499,3.91627939,88.193,88.153,4.05759805]
[1773605251904,3.91627939,88.193,88.155,4.05759805]
[1773605257311,3.91627939,88.193,88.158,4.05759805]
[1773605258607,3.91627939,88.193,88.16,4.05759805]
[1773605259516,10.202,88.201,88.162,4.05759805]
[1773605260706,10.202,88.201,88.164,4.05759805]
[1773605261414,3.91627939,88.214,88.171,4.05759805]
[1773605262502,3.91627939,88.214,88.171,14.26259805]
[1773605262707,3.91627939,88.214,88.172,4.05759805]
[1773605263813,10.2,88.223,88.181,4.05759805]